fUST/lending_fUST_20250226
["ID","MTS","AMOUNT","RATE_DAILY","PERIOD"]
[354575331,1740579529519,-500.0,0.00054794,120]
[354575332,1740579529548,-500.0,0.00054794,120]
[354575333,1740579529577,-501.8,0.00054794,120]
[354575334,1740579529604,-500.0,0.00054794,120]
[354575335,1740579529631,-500.0,0.00054794,120]
[354575336,1740579529657,-500.0,0.00054794,120]
[354575337,1740579529684,-500.0,0.00054794,120]
[354575338,1740579529712,-500.0,0.00054794,120]
[354575339,1740579529746,-500.0,0.00054794,120]
[354575340,1740579529773,-500.0,0.00054794,120]
[354575341,1740579529800,-500.0,0.00054794,120]
[354575342,1740579529827,-300.0,0.00054794,120]
[354575343,1740579529854,-500.0,0.00054794,120]
[354575344,1740579529883,-508.02654153,0.00054794,120]
[354575345,1740579529911,-246.09345534,0.00054794,120]
[354575346,1740579529940,-640.23,0.00054794,120]
[354575347,1740579529966,-500.0,0.00054794,120]
[354575348,1740579529995,-500.0,0.00054794,120]
[354575349,1740579530020,-501.15182719,0.00054794,120]
[354575350,1740579530046,-500.0,0.00054794,120]
[354575351,1740579530071,-500.0,0.00054794,120]
[354575352,1740579530097,-611.99,0.00054794,120]
[354575353,1740579530122,-260.65426981,0.00054794,120]
[354575354,1740579530149,-500.0,0.00054794,120]
[354575355,1740579530174,-305.01831373,0.00054794,120]
[354575356,1740579530200,-500.0,0.00054794,120]
[354575357,1740579530226,-500.0,0.00054794,120]
[354575358,1740579530255,-521.21,0.00054794,120]
[354575359,1740579530282,-502.69264285,0.00054794,120]
[354575360,1740579530309,-500.0,0.00054794,120]
[354575361,1740579530463,-500.0,0.00054794,120]
[354575362,1740579530493,-500.0,0.00054794,120]
[354575363,1740579530522,-760.79,0.00054794,120]
[354575364,1740579530550,-500.0,0.00054794,120]
[354575365,1740579530577,-503.14613345,0.00054794,120]
[354575366,1740579530604,-913.67,0.00054794,120]
[354575367,1740579530632,-500.0,0.00054794,120]
[354575368,1740579530660,-1140.88,0.00054794,120]
[354575369,1740579530688,-500.0,0.00054794,120]
[354575370,1740579530716,-500.0,0.00054794,120]
[354575371,1740579530744,-500.0,0.00054794,120]
[354575372,1740579530771,-500.0,0.00054794,120]
[354575373,1740579530798,-500.0,0.00054794,120]
[354575374,1740579530826,-500.0,0.00054794,120]
[354575375,1740579530853,-500.0,0.00054794,120]
[354575376,1740579530881,-500.0,0.00054794,120]
[354575377,1740579530909,-500.0,0.00054794,120]
[354575378,1740579530936,-500.0,0.00054794,120]
[354575379,1740579530964,-500.0,0.00054794,120]
[354575380,1740579530993,-500.0,0.00054794,120]
[354575381,1740579531019,-506.78251453,0.00054794,120]
[354575382,1740579531046,-500.0,0.00054794,120]
[354575383,1740579531073,-500.0,0.00054794,120]
[354575384,1740579531099,-500.0,0.00054794,120]
[354575385,1740579531125,-500.0,0.00054794,120]
[354575386,1740579531152,-500.0,0.00054794,120]
[354575387,1740579531179,-500.0,0.00054794,120]
[354575388,1740579531206,-609.15,0.00054794,120]
[354575389,1740579531235,-500.0,0.00054794,120]
[354575390,1740579531264,-501.93245644,0.00054794,120]
[354575391,1740579531291,-509.91966084,0.00054794,120]
[354575392,1740579531320,-505.06246647,0.00054794,120]
[354575393,1740579531347,-500.0,0.00054794,120]
[354575394,1740579531376,-500.0,0.00054794,120]
[354575395,1740579531405,-500.0,0.00054794,120]
[354575396,1740579531433,-500.0,0.00054794,120]
[354575397,1740579531460,-500.0,0.00054794,120]
[354575398,1740579531490,-500.0,0.00054794,120]
[354575399,1740579531517,-500.0,0.00054794,120]
[354575400,1740579531544,-500.0,0.00054794,120]
[354575401,1740579531571,-500.0,0.00054794,120]
[354575402,1740579531599,-500.0,0.00054794,120]
[354575403,1740579531625,-1287.22,0.00054794,120]
[354575404,1740579531652,-500.0,0.00054794,120]
[354575405,1740579531679,-500.0,0.00054794,120]
[354575406,1740579531706,-500.0,0.00054794,120]
[354575407,1740579531733,-500.0,0.00054794,120]
[354575408,1740579531764,-663.23,0.00054794,120]
[354575409,1740579531791,-500.0,0.00054794,120]
[354575410,1740579531818,-500.0,0.00054794,120]
[354575411,1740579531844,-500.0,0.00054794,120]
[354575412,1740579531870,-734.46,0.00054794,120]
[354575413,1740579531896,-500.0,0.00054794,120]
[354575414,1740579531922,-500.0,0.00054794,120]
[354575415,1740579531948,-500.0,0.00054794,120]
[354575416,1740579531974,-500.0,0.00054794,120]
[354575417,1740579532005,-732.01,0.00054794,120]
[354575418,1740579532032,-500.0,0.00054794,120]
[354575419,1740579532060,-2372.72,0.00054794,120]
[354575420,1740579532088,-500.51651012,0.00054794,120]
[354575421,1740579532115,-500.0,0.00054794,120]
[354575422,1740579532144,-500.0,0.00054794,120]
[354575423,1740579532174,-500.0,0.00054794,120]
[354575424,1740579532203,-500.0,0.00054794,120]
[354575425,1740579532232,-500.0,0.00054794,120]
[354575426,1740579532263,-1451.28,0.00054794,120]
[354575427,1740579532290,-542.48700257,0.00054794,120]
[354575428,1740579532317,-500.0,0.00054794,120]
[354575429,1740579532346,-500.0,0.00054794,120]
[354575430,1740579532376,-714.36,0.00054794,120]
[354575431,1740579532522,-500.0,0.00054794,120]
[354575432,1740579532551,-500.0,0.00054794,120]
[354575433,1740579532581,-501.33809892,0.00054794,120]
[354575434,1740579532609,-500.0,0.00054794,120]
[354575435,1740579532637,-355.97895688,0.00054794,120]
[354575436,1740579532665,-156.852496,0.00054794,120]
[354575437,1740579532692,-500.0,0.00054794,120]
[354575438,1740579532720,-156.852496,0.00054794,120]
[354575439,1740579532750,-500.0,0.00054794,120]
[354575440,1740579532777,-500.0,0.00054794,120]
[354575441,1740579532803,-173.90890343,0.00054794,120]
[354575442,1740579532830,-156.852496,0.00054794,120]
[354575443,1740579532857,-156.852486,0.00054794,120]
[354575444,1740579532883,-500.0,0.00054794,120]
[354575445,1740579532909,-500.0,0.00054794,120]
[354575446,1740579532934,-686.09,0.00054794,120]
[354575447,1740579532961,-500.0,0.00054794,120]
[354575448,1740579532990,-500.0,0.00054794,120]
[354575449,1740579533016,-500.0,0.00054794,120]
[354575450,1740579533043,-500.0,0.00054794,120]
[354575451,1740579533069,-231.622582,0.00054794,110]
[354575452,1740579533094,-500.0,0.00054794,120]
[354575453,1740579533121,-231.622582,0.00054794,110]
[354575454,1740579533147,-374.74720964,0.00054794,120]
[354575455,1740579533173,-500.0,0.00054794,120]
[354575456,1740579533201,-231.622582,0.00054794,110]
[354575457,1740579533229,-231.622574,0.00054794,110]
[354575458,1740579533258,-500.0,0.00054794,120]
[354575459,1740579533285,-500.0,0.00054794,120]
[354575460,1740579533313,-987.73,0.00054794,120]
[354575461,1740579533344,-500.0,0.00054794,120]
[354575462,1740579533371,-438.15695586,0.00054794,120]
[354575463,1740579533401,-794.33,0.00054794,120]
[354575464,1740579533429,-752.73,0.00054794,120]
[354575465,1740579533459,-1867.59,0.00054794,120]
[354575466,1740579533490,-500.0,0.00054794,120]
[354575467,1740579533519,-500.0,0.00054794,120]
[354575468,1740579533546,-500.0,0.00054794,120]
[354575469,1740579533574,-503.04,0.00054794,120]
[354575470,1740579533602,-500.0,0.00054794,120]
[354575471,1740579533630,-500.0,0.00054794,120]
[354575472,1740579533657,-500.0,0.00054794,120]
[354575473,1740579533683,-500.0,0.00054794,120]
[354575474,1740579533710,-500.0,0.00054794,30]
[354575475,1740579533738,-270.90797602,0.00054794,120]
[354575476,1740579533767,-500.0,0.00054794,120]
[354575477,1740579533793,-500.0,0.00054794,120]
[354575478,1740579533820,-508.67,0.00054794,120]
[354575479,1740579533846,-500.0,0.00054794,120]
[354575480,1740579533873,-500.0,0.00054794,120]
[354575481,1740579533899,-500.0,0.00054794,120]
[354575482,1740579533925,-500.0,0.00054794,120]
[354575483,1740579533951,-500.0,0.00054794,120]
[354575484,1740579533977,-639.41987518,0.00054794,120]
[354575485,1740579534005,-500.0,0.00054794,120]
[354575486,1740579534032,-500.0,0.00054794,120]
[354575487,1740579534058,-500.0,0.00054794,120]
[354575488,1740579534083,-500.0,0.00054794,120]
[354575489,1740579534108,-500.0,0.00054794,120]
[354575490,1740579534135,-763.72,0.00054794,120]
[354575491,1740579534160,-719.9,0.00054794,120]
[354575492,1740579534186,-500.0,0.00054794,120]
[354575493,1740579534211,-500.0,0.00054794,120]
[354575494,1740579534239,-500.0,0.00054794,120]
[354575495,1740579534265,-500.0,0.00054794,120]
[354575496,1740579534290,-1000.52,0.00054794,120]
[354575497,1740579534317,-500.0,0.00054794,120]
[354575498,1740579534345,-500.0,0.00054794,120]
[354575499,1740579534489,-500.0,0.00054794,120]
[354575500,1740579534516,-500.0,0.00054794,120]
[354575501,1740579534545,-345.91555094,0.00054794,120]
[354575502,1740579534573,-500.0,0.00054794,120]
[354575503,1740579534602,-585.13763633,0.00054794,120]
[354575504,1740579534631,-500.0,0.00054794,120]
[354575505,1740579534661,-500.0,0.00054794,120]
[354575506,1740579534689,-500.0,0.00054794,120]
[354575507,1740579534718,-500.0,0.00054794,120]
[354575508,1740579534745,-500.0,0.00054794,120]
[354575509,1740579534773,-588.16,0.00054794,120]
[354575510,1740579534800,-500.0,0.00054794,120]
[354575511,1740579534828,-500.0,0.00054794,120]
[354575512,1740579534855,-500.0,0.00054794,120]
[354575513,1740579534883,-500.0,0.00054794,120]
[354575514,1740579534911,-878.05,0.00054794,120]
[354575515,1740579534940,-1618.95,0.00054794,120]
[354575516,1740579534967,-500.0,0.00054794,120]
[354575517,1740579534995,-500.0,0.00054794,120]
[354575518,1740579535022,-500.0,0.00054794,120]
[354575519,1740579535050,-1103.91,0.00054794,120]
[354575520,1740579535077,-500.0,0.00054794,120]
[354575521,1740579535105,-500.0,0.00054794,120]
[354575522,1740579535134,-788.09,0.00054794,120]
[354575523,1740579535162,-500.0,0.00054794,120]
[354575524,1740579535188,-956.39,0.00054794,120]
[354575525,1740579535216,-500.0,0.00054794,120]
[354575526,1740579535243,-500.0,0.00054794,120]
[354575527,1740579535271,-500.80551448,0.00054794,120]
[354575528,1740579535297,-500.0,0.00054794,120]
[354575529,1740579535323,-505.16079368,0.00054794,120]
[354575530,1740579535352,-500.0,0.00054794,120]
[354575531,1740579535383,-500.0,0.00054794,120]
[354575532,1740579535411,-500.0,0.00054794,120]
[354575533,1740579535438,-500.0,0.00054794,120]
[354575534,1740579535466,-500.0,0.00054794,120]
[354575535,1740579535493,-500.0,0.00054794,120]
[354575536,1740579535520,-500.0,0.00054794,120]
[354575537,1740579535546,-500.0,0.00054794,120]
[354575538,1740579535573,-4267.47,0.00054794,120]
[354575539,1740579535600,-1105.72,0.00054794,120]
[354575540,1740579535627,-500.0,0.00054794,120]
[354575541,1740579535654,-500.0,0.00054794,120]
[354575542,1740579535681,-500.0,0.00054794,120]
[354575543,1740579535708,-583.82884349,0.00054794,120]
[354575544,1740579535736,-599.26,0.00054794,120]
[354575545,1740579535764,-500.0,0.00054794,120]
[354575546,1740579535792,-500.0,0.00054794,120]
[354575547,1740579535819,-500.0,0.00054794,120]
[354575548,1740579535845,-500.0,0.00054794,120]
[354575549,1740579535872,-500.0,0.00054794,120]
[354575550,1740579535899,-4731.34,0.00054794,120]
[354575551,1740579535926,-1844.7,0.00054794,120]
[354575552,1740579535954,-501.1759548,0.00054794,120]
[354575553,1740579535982,-500.0,0.00054794,120]
[354575554,1740579536013,-500.0,0.00054794,120]
[354575555,1740579536040,-500.0,0.00054794,120]
[354575556,1740579536066,-500.0,0.00054794,120]
[354575557,1740579536093,-500.0,0.00054794,120]
[354575558,1740579536120,-500.0,0.00054794,120]
[354575559,1740579536148,-3006.93,0.00054794,120]
[354575560,1740579536176,-500.0,0.00054794,120]
[354575561,1740579536203,-500.0,0.00054794,120]
[354575562,1740579536230,-500.0,0.00054794,120]
[354575563,1740579536260,-707.31,0.00054794,120]
[354575564,1740579536400,-157.05018546,0.00054794,120]
[354575565,1740579536431,-500.0,0.00054794,120]
[354575566,1740579536460,-500.0,0.00054794,120]
[354575567,1740579536491,-500.0,0.00054794,120]
[354575568,1740579536518,-1342.36,0.00054794,120]
[354575569,1740579536546,-500.0,0.00054794,120]
[354575570,1740579536575,-2712.13,0.00054794,120]
[354575571,1740579536602,-1219.6,0.00054794,120]
[354575572,1740579536629,-685.54,0.00054794,120]
[354575573,1740579536656,-500.0,0.00054794,120]
[354575574,1740579536683,-506.39926972,0.00054794,120]
[354575575,1740579536712,-500.0,0.00054794,120]
[354575576,1740579536740,-500.0,0.00054794,120]
[354575577,1740579536768,-500.0,0.00054794,120]
[354575578,1740579536795,-1336.54,0.00054794,120]
[354575579,1740579536823,-500.0,0.00054794,120]
[354575580,1740579536851,-500.0,0.00054794,120]
[354575581,1740579536876,-500.0,0.00054794,120]
[354575582,1740579536903,-500.0,0.00054794,120]
[354575583,1740579536929,-503.48674989,0.00054794,120]
[354575584,1740579536956,-632.85,0.00054794,120]
[354575585,1740579536982,-500.0,0.00054794,120]
[354575586,1740579537010,-500.0,0.00054794,120]
[354575587,1740579537037,-500.0,0.00054794,120]
[354575588,1740579537065,-940.1,0.00054794,120]
[354575589,1740579537091,-746.51,0.00054794,120]
[354575590,1740579537118,-957.71,0.00054794,120]
[354575591,1740579537145,-536.62,0.00054794,120]
[354575592,1740579537170,-500.0,0.00054794,120]
[354575593,1740579537197,-500.0,0.00054794,120]
[354575594,1740579537226,-500.0,0.00054794,120]
[354575595,1740579537254,-500.0,0.00054794,120]
[354575596,1740579537280,-250.0,0.00054794,120]
[354575597,1740579537307,-500.0,0.00054794,120]
[354575598,1740579537338,-500.0,0.00054794,120]
[354575599,1740579537365,-649.39492309,0.00054794,120]
[354575600,1740579537397,-500.0,0.00054794,120]
[354575601,1740579537431,-500.0,0.00054794,120]
[354575602,1740579537460,-500.0,0.00054794,120]
[354575603,1740579537490,-1209.39,0.00054794,120]
[354575604,1740579537520,-500.0,0.00054794,120]
[354575605,1740579537549,-501.634988,0.00054794,120]
[354575606,1740579537578,-503.61612058,0.00054794,120]
[354575607,1740579537607,-500.0,0.00054794,120]
[354575608,1740579537635,-502.1553688,0.00054794,120]
[354575609,1740579537664,-948.33,0.00054794,120]
[354575610,1740579537693,-500.0,0.00054794,120]
[354575611,1740579537722,-595.05,0.00054794,120]
[354575612,1740579537752,-816.0,0.00054794,120]
[354575613,1740579537780,-500.0,0.00054794,120]
[354575614,1740579537808,-1168.06,0.00054794,120]
[354575615,1740579537836,-500.0,0.00054794,120]
[354575616,1740579537864,-933.54,0.00054794,120]
[354575617,1740579537892,-500.0,0.00054794,120]
[354575618,1740579537922,-500.0,0.00054794,120]
[354575619,1740579537950,-500.0,0.00054794,120]
[354575620,1740579537979,-500.0,0.00054794,120]
[354575621,1740579538007,-502.37737784,0.00054794,120]
[354575622,1740579538035,-1182.23,0.00054794,120]
[354575623,1740579538062,-500.0,0.00054794,120]
[354575624,1740579538091,-500.0,0.00054794,120]
[354575625,1740579538119,-500.0,0.00054794,120]
[354575626,1740579538148,-500.0,0.00054794,30]
[354575627,1740579538176,-1802.97,0.00054794,120]
[354575628,1740579538316,-500.0,0.00054794,120]
[354575629,1740579538348,-500.0,0.00054794,120]
[354575630,1740579538376,-500.0,0.00054794,120]
[354575631,1740579538404,-500.0,0.00054794,120]
[354575632,1740579538432,-500.0,0.00054794,120]
[354575633,1740579538459,-1908.47,0.00054794,120]
[354575634,1740579538487,-500.0,0.00054794,120]
[354575635,1740579538516,-667.46,0.00054794,120]
[354575636,1740579538544,-500.0,0.00054794,120]
[354575637,1740579538571,-367.45079647,0.00054794,120]
[354575638,1740579538598,-500.0,0.00054794,120]
[354575639,1740579538626,-500.0,0.00054794,120]
[354575640,1740579538654,-500.0,0.00054794,120]
[354575641,1740579538682,-500.0,0.00054794,120]
[354575642,1740579538709,-500.0,0.00054794,120]
[354575643,1740579538737,-500.0,0.00054794,120]
[354575644,1740579538766,-500.0,0.00054794,120]
[354575645,1740579538794,-500.0,0.00054794,120]
[354575646,1740579538820,-500.0,0.00054794,120]
[354575647,1740579538847,-216.10474687,0.00054794,120]
[354575648,1740579538873,-766.23,0.00054794,120]
[354575649,1740579538901,-500.0,0.00054794,120]
[354575650,1740579538928,-500.0,0.00054794,120]
[354575651,1740579538957,-500.0,0.00054794,120]
[354575652,1740579538985,-1972.1,0.00054794,120]
[354575653,1740579539014,-500.0,0.00054794,120]
[354575654,1740579539041,-605.47,0.00054794,120]
[354575655,1740579539068,-611.49,0.00054794,120]
[354575656,1740579539095,-500.0,0.00054794,30]
[354575657,1740579539123,-500.0,0.00054794,120]
[354575658,1740579539151,-500.0,0.00054794,120]
[354575659,1740579539184,-615.91,0.00054794,120]
[354575660,1740579539218,-500.0,0.00054794,120]
[354575661,1740579539256,-500.0,0.00054794,120]
[354575662,1740579539288,-500.0,0.00054794,120]
[354575663,1740579539322,-500.0,0.00054794,120]
[354575664,1740579539351,-500.0,0.00054794,120]
[354575665,1740579539382,-500.0,0.00054794,120]
[354575666,1740579539413,-500.0,0.00054794,120]
[354575667,1740579539444,-500.0,0.00054794,120]
[354575668,1740579539473,-500.0,0.00054794,120]
[354575669,1740579539503,-500.0,0.00054794,120]
[354575670,1740579539532,-500.0,0.00054794,120]
[354575671,1740579539562,-500.0,0.00054794,120]
[354575672,1740579539592,-500.0,0.00054794,120]
[354575673,1740579539622,-1786.93,0.00054794,120]
[354575674,1740579539651,-681.1,0.00054794,60]
[354575675,1740579539679,-500.0,0.00054794,120]
[354575676,1740579539707,-503.02322235,0.00054794,120]
[354575677,1740579539736,-500.0,0.00054794,120]
[354575678,1740579539769,-500.0,0.00054794,120]
[354575679,1740579539797,-500.0,0.00054794,120]
[354575680,1740579539825,-500.0,0.00054794,120]
[354575681,1740579539854,-4303.11,0.00054794,120]
[354575682,1740579539881,-501.43438982,0.00054794,120]
[354575683,1740579539907,-500.0,0.00054794,120]
[354575684,1740579539934,-752.79,0.00054794,120]
[354575685,1740579539962,-500.0,0.00054794,120]
[354575686,1740579539989,-500.0,0.00054794,120]
[354575687,1740579540019,-2651.64,0.00054794,120]
[354575688,1740579540047,-500.0,0.00054794,120]
[354575689,1740579540187,-500.0,0.00054794,120]
[354575690,1740579540217,-501.20326332,0.00054794,120]
[354575691,1740579540252,-500.0,0.00054794,120]
[354575692,1740579540281,-500.0,0.00054794,120]
[354575693,1740579540311,-500.0,0.00054794,120]
[354575694,1740579540347,-899.43,0.00054794,120]
[354575695,1740579540379,-500.0,0.00054794,120]
[354575696,1740579540411,-500.0,0.00054794,120]
[354575697,1740579540443,-500.0,0.00054794,120]
[354575698,1740579540475,-500.0,0.00054794,120]
[354575699,1740579540508,-500.0,0.00054794,120]
[354575700,1740579540539,-500.0,0.00054794,120]
[354575701,1740579540570,-1779.91,0.00054794,120]
[354575702,1740579540602,-500.0,0.00054794,120]
[354575703,1740579540633,-2802.84,0.00054794,120]
[354575704,1740579540664,-500.0,0.00054794,120]
[354575705,1740579540696,-500.0,0.00054794,120]
[354575706,1740579540727,-500.0,0.00054794,120]
[354575707,1740579540760,-500.0,0.00054794,120]
[354575708,1740579540793,-542.38,0.00054794,120]
[354575709,1740579540823,-500.0,0.00054794,120]
[354575710,1740579540852,-500.0,0.00054794,120]
[354575711,1740579540881,-502.07040262,0.00054794,120]
[354575712,1740579540911,-500.0,0.00054794,120]
[354575713,1740579540941,-500.0,0.00054794,120]
[354575714,1740579540969,-500.0,0.00054794,120]
[354575715,1740579541000,-500.0,0.00054794,120]
[354575716,1740579541028,-500.0,0.00054794,120]
[354575717,1740579541058,-797.55,0.00054794,120]
[354575718,1740579541087,-500.0,0.00054794,120]
[354575719,1740579541116,-500.0,0.00054794,120]
[354575720,1740579541147,-1239.34,0.00054794,120]
[354575721,1740579541176,-158.74620652,0.00054794,120]
[354575722,1740579541207,-500.0,0.00054794,120]
[354575723,1740579541236,-892.74,0.00054794,120]
[354575724,1740579541268,-500.0,0.00054794,120]
[354575725,1740579541297,-500.0,0.00054794,120]
[354575726,1740579541327,-500.0,0.00054794,120]
[354575727,1740579541357,-500.0,0.00054794,120]
[354575728,1740579541391,-500.0,0.00054794,120]
[354575729,1740579541425,-500.0,0.00054794,120]
[354575730,1740579541455,-500.0,0.00054794,120]
[354575731,1740579541485,-500.0,0.00054794,120]
[354575732,1740579541521,-500.0,0.00054794,120]
[354575733,1740579541553,-1800.49,0.00054794,120]
[354575734,1740579541584,-500.0,0.00054794,120]
[354575735,1740579541615,-239.16209288,0.00054794,120]
[354575736,1740579541645,-500.0,0.00054794,120]
[354575737,1740579541676,-500.0,0.00054794,120]
[354575738,1740579541706,-500.0,0.00054794,120]
[354575739,1740579541737,-500.0,0.00054794,120]
[354575740,1740579541773,-500.0,0.00054794,120]
[354575741,1740579541803,-500.0,0.00054794,120]
[354575742,1740579541831,-500.0,0.00054794,120]
[354575743,1740579541859,-500.0,0.00054794,120]
[354575744,1740579541887,-500.0,0.00054794,120]
[354575745,1740579541915,-2734.29,0.00054794,120]
[354575746,1740579541944,-500.0,0.00054794,120]
[354575747,1740579541973,-213.09074272,0.00054794,120]
[354575748,1740579542002,-500.0,0.00054794,120]
[354575749,1740579542139,-500.0,0.00054794,120]
[354575750,1740579542168,-500.0,0.00054794,120]
[354575751,1740579542197,-500.0,0.00054794,120]
[354575752,1740579542226,-500.0,0.00054794,120]
[354575753,1740579542257,-500.0,0.00054794,120]
[354575754,1740579542284,-500.0,0.00054794,120]
[354575755,1740579542311,-2842.07,0.00054794,120]
[354575756,1740579542343,-1400.86,0.00054794,120]
[354575757,1740579542369,-500.0,0.00054794,120]
[354575758,1740579542401,-500.0,0.00054794,120]
[354575759,1740579542432,-500.0,0.00054794,120]
[354575760,1740579542460,-500.0,0.00054794,120]
[354575761,1740579542489,-500.0,0.00054794,120]
[354575762,1740579542521,-503.36723565,0.00054794,120]
[354575763,1740579542550,-506.44,0.00054794,120]
[354575764,1740579542578,-500.0,0.00054794,45]
[354575765,1740579542606,-500.0,0.00054794,120]
[354575766,1740579542635,-500.0,0.00054794,120]
[354575767,1740579542664,-500.0,0.00054794,120]
[354575768,1740579542692,-500.0,0.00054794,120]
[354575769,1740579542721,-938.59,0.00054794,120]
[354575770,1740579542752,-500.0,0.00054794,120]
[354575771,1740579542780,-500.0,0.00054794,120]
[354575772,1740579542809,-500.0,0.00054794,120]
[354575773,1740579542837,-500.0,0.00054794,120]
[354575774,1740579542864,-500.0,0.00054794,120]
[354575775,1740579542894,-500.0,0.00054794,120]
[354575776,1740579542923,-631.61529679,0.00054794,120]
[354575777,1740579542953,-1785.96,0.00054794,120]
[354575778,1740579542981,-500.0,0.00054794,120]
[354575779,1740579543014,-1030.22,0.00054794,120]
[354575780,1740579543043,-500.0,0.00054794,120]
[354575781,1740579543073,-556.52,0.00054794,120]
[354575782,1740579543102,-504.85927931,0.00054794,120]
[354575783,1740579543132,-500.0,0.00054794,120]
[354575784,1740579543161,-1000.0,0.00054794,30]
[354575785,1740579543192,-501.76440804,0.00054794,120]
[354575786,1740579543224,-767.42,0.00054794,120]
[354575787,1740579543255,-500.0,0.00054794,120]
[354575788,1740579543285,-500.0,0.00054794,120]
[354575789,1740579543315,-532.73502446,0.00054794,120]
[354575790,1740579543349,-503.40568368,0.00054794,120]
[354575791,1740579543381,-500.53484753,0.00054794,120]
[354575792,1740579543414,-1765.38,0.00054794,120]
[354575793,1740579543447,-1286.42,0.00054794,120]
[354575794,1740579543479,-1300.99,0.00054794,120]
[354575795,1740579543512,-500.0,0.00054794,120]
[354575796,1740579543544,-1335.69,0.00054794,120]
[354575797,1740579543576,-500.0,0.00054794,120]
[354575798,1740579543609,-1335.69,0.00054794,120]
[354575799,1740579543642,-1335.69,0.00054794,120]
[354575800,1740579543675,-1335.69,0.00054794,120]
[354575801,1740579543707,-500.0,0.00054794,120]
[354575802,1740579543740,-1335.69,0.00054794,120]
[354575803,1740579543776,-1335.69,0.00054794,120]
[354575804,1740579543807,-1335.69,0.00054794,120]
[354575805,1740579543839,-1335.69,0.00054794,120]
[354575806,1740579543988,-1335.69,0.00054794,120]
[354575807,1740579544024,-500.0,0.00054794,120]
[354575808,1740579544055,-500.0,0.00054794,120]
[354575809,1740579544087,-1335.69,0.00054794,120]
[354575810,1740579544117,-1575.22,0.00054794,120]
[354575811,1740579544151,-1335.69,0.00054794,120]
[354575812,1740579544183,-1335.69,0.00054794,120]
[354575813,1740579544214,-1335.69,0.00054794,120]
[354575814,1740579544247,-1335.69,0.00054794,120]
[354575815,1740579544279,-1335.69,0.00054794,120]
[354575816,1740579544310,-1335.69,0.00054794,120]
[354575817,1740579544346,-1335.69,0.00054794,120]
[354575818,1740579544381,-1335.69,0.00054794,120]
[354575819,1740579544415,-500.0,0.00054794,120]
[354575820,1740579544449,-1335.69,0.00054794,120]
[354575821,1740579544480,-1335.69,0.00054794,120]
[354575822,1740579544515,-1335.69,0.00054794,120]
[354575823,1740579544546,-1335.69,0.00054794,120]
[354575824,1740579544580,-1335.69,0.00054794,120]
[354575825,1740579544611,-500.0,0.00054794,120]
[354575826,1740579544642,-1335.70820206,0.00054794,120]
[354575827,1740579544674,-500.0,0.00054794,120]
[354575828,1740579544705,-500.0,0.00054794,120]
[354575829,1740579544735,-500.0,0.00054794,120]
[354575830,1740579544768,-500.0,0.00054794,120]